[Event "Late-Titled-Tuesday-Blitz-May-07-2024"]
[Site "Chess.com"]
[Date "2024.05.07"]
[Round "2"]
[White "Bryanl106"]
[Black "Polish_fighter3000"]
[Result "0-1"]
[WhiteElo "2689"]
[BlackElo "3128"]
[TimeControl "180+1"]
[EndTime "14:15:56 PDT"]
[Termination "Polish_fighter3000 won by resignation"]

1. e4 {[%clk 0:02:59.5]} 1... e6 {[%clk 0:02:57.6]} 2. d4 {[%clk 0:02:58]} 2...
c5 {[%clk 0:02:56.8]} 3. Nf3 {[%clk 0:02:53.4]} 3... cxd4 {[%clk 0:02:50.5]} 4.
Nxd4 {[%clk 0:02:53]} 4... Nf6 {[%clk 0:02:50.7]} 5. Nc3 {[%clk 0:02:53.1]} 5...
Nc6 {[%clk 0:02:46.5]} 6. Ndb5 {[%clk 0:02:53.3]} 6... Bb4 {[%clk 0:02:43]} 7.
a3 {[%clk 0:02:53.2]} 7... Bxc3+ {[%clk 0:02:42.8]} 8. Nxc3 {[%clk 0:02:54.1]}
8... O-O {[%clk 0:02:41.6]} 9. Bd3 {[%clk 0:02:54.4]} 9... d5 {[%clk 0:02:41.1]}
10. exd5 {[%clk 0:02:55.3]} 10... exd5 {[%clk 0:02:39.9]} 11. O-O {[%clk
0:02:55.9]} 11... d4 {[%clk 0:02:37.9]} 12. Ne2 {[%clk 0:02:56.3]} 12... Re8
{[%clk 0:02:37.3]} 13. Bf4 {[%clk 0:02:54.7]} 13... Bg4 {[%clk 0:02:34.4]} 14.
f3 {[%clk 0:02:54.6]} 14... Bh5 {[%clk 0:02:34.9]} 15. Qd2 {[%clk 0:02:51.2]}
15... Bg6 {[%clk 0:02:27.8]} 16. Bg5 {[%clk 0:02:49.7]} 16... Qd6 {[%clk
0:01:47.9]} 17. Nf4 {[%clk 0:02:45.9]} 17... Bxd3 {[%clk 0:01:32]} 18. Nxd3
{[%clk 0:02:46.8]} 18... Nd5 {[%clk 0:01:32.2]} 19. Qf2 {[%clk 0:02:39]} 19...
h6 {[%clk 0:01:26.3]} 20. Bd2 {[%clk 0:02:36.3]} 20... Ne3 {[%clk 0:01:24.8]}
21. Bxe3 {[%clk 0:02:30.8]} 21... dxe3 {[%clk 0:01:25.7]} 22. Qg3 {[%clk
0:02:31.7]} 22... Qxg3 {[%clk 0:01:15.2]} 23. hxg3 {[%clk 0:02:32.6]} 23... Nd4
{[%clk 0:01:10.8]} 24. c3 {[%clk 0:02:32.4]} 24... Nc2 {[%clk 0:01:11]} 25. Rac1
{[%clk 0:02:30.8]} 25... e2 {[%clk 0:01:10.7]} 26. Rxc2 {[%clk 0:02:31.2]} 26...
exf1=Q+ {[%clk 0:01:09.5]} 27. Kxf1 {[%clk 0:02:32.1]} 27... Rad8 {[%clk
0:01:09.3]} 28. Nf2 {[%clk 0:02:31.1]} 28... h5 {[%clk 0:01:03.9]} 29. Kg1
{[%clk 0:02:23.2]} 29... Re1+ {[%clk 0:01:00.1]} 30. Kh2 {[%clk 0:02:23.4]}
30... a5 {[%clk 0:00:59.3]} 31. g4 {[%clk 0:02:22.2]} 31... hxg4 {[%clk
0:00:57.8]} 32. Nxg4 {[%clk 0:02:23.1]} 32... Rde8 {[%clk 0:00:55.7]} 33. Rd2
{[%clk 0:02:11.7]} 33... f5 {[%clk 0:00:55.4]} 34. Nf2 {[%clk 0:02:04.4]} 34...
R1e2 {[%clk 0:00:55.9]} 35. Rxe2 {[%clk 0:01:58.1]} 35... Rxe2 {[%clk
0:00:56.8]} 36. Nd1 {[%clk 0:01:58.9]} 36... f4 {[%clk 0:00:49.9]} 37. c4 {[%clk
0:01:58.6]} 37... Rd2 {[%clk 0:00:30.3]} 38. Nc3 {[%clk 0:01:58.7]} 38... Rxb2
{[%clk 0:00:30.9]} 39. Nd5 {[%clk 0:01:59.6]} 39... Ra2 {[%clk 0:00:29.5]} 40.
Nxf4 {[%clk 0:01:57.3]} 40... Rxa3 {[%clk 0:00:29.6]} 41. Nd5 {[%clk 0:01:52.7]}
41... a4 {[%clk 0:00:30.5]} 42. Kg3 {[%clk 0:01:51.7]} 42... Rb3 {[%clk
0:00:29.9]} 43. Kf4 {[%clk 0:01:44.9]} 43... a3 {[%clk 0:00:30.8]} 44. Nc3
{[%clk 0:01:42.4]} 44... Rxc3 {[%clk 0:00:30.6]} 0-1

[Event "Late-Titled-Tuesday-Blitz-May-07-2024"]
[Site "Chess.com"]
[Date "2024.05.07"]
[Round "2"]
[White "ahkashefi2800"]
[Black "schondeln"]
[Result "1-0"]
[WhiteElo "2577"]
[BlackElo "2373"]
[TimeControl "180+1"]
[EndTime "14:15:58 PDT"]
[Termination "ahkashefi2800 won by resignation"]

1. e4 {[%clk 0:02:55.8]} 1... d5 {[%clk 0:02:59.8]} 2. exd5 {[%clk 0:02:55]}
2... Qxd5 {[%clk 0:03:00.7]} 3. Nc3 {[%clk 0:02:54.6]} 3... Qa5 {[%clk
0:03:00.1]} 4. d4 {[%clk 0:02:54.4]} 4... Nf6 {[%clk 0:03:00.2]} 5. Bc4 {[%clk
0:02:54]} 5... Bg4 {[%clk 0:02:59.4]} 6. f3 {[%clk 0:02:53.5]} 6... Bd7 {[%clk
0:02:58]} 7. Bd2 {[%clk 0:02:54.4]} 7... Qb6 {[%clk 0:02:55.5]} 8. Bb3 {[%clk
0:02:53.8]} 8... Qxd4 {[%clk 0:02:47.5]} 9. Nge2 {[%clk 0:02:53.7]} 9... Qb6
{[%clk 0:02:47.3]} 10. Na4 {[%clk 0:02:45.4]} 10... Bxa4 {[%clk 0:02:39.8]} 11.
Bxa4+ {[%clk 0:02:45.2]} 11... Nc6 {[%clk 0:02:40]} 12. Qc1 {[%clk 0:02:41.9]}
12... O-O-O {[%clk 0:02:38.5]} 13. Be3 {[%clk 0:02:41.4]} 13... Qa5+ {[%clk
0:02:38.2]} 14. Nc3 {[%clk 0:02:38.9]} 14... Nd4 {[%clk 0:02:11.8]} 15. O-O
{[%clk 0:02:32.6]} 15... e6 {[%clk 0:02:12]} 16. Rd1 {[%clk 0:02:25.9]} 16...
Bc5 {[%clk 0:02:10.6]} 17. Bb3 {[%clk 0:02:14.6]} 17... Qxc3 {[%clk 0:01:36.7]}
18. Rxd4 {[%clk 0:02:11.9]} 18... Qa5 {[%clk 0:01:28.5]} 19. Rxd8+ {[%clk
0:02:01.2]} 19... Rxd8 {[%clk 0:01:27.6]} 20. Kh1 {[%clk 0:02:00.7]} 20... Bxe3
{[%clk 0:01:23.6]} 21. Qxe3 {[%clk 0:02:01.6]} 21... Qd2 {[%clk 0:01:23.7]} 22.
Qxa7 {[%clk 0:02:00.5]} 22... Qd1+ {[%clk 0:01:22.3]} 23. Qg1 {[%clk 0:01:59.9]}
23... Qxg1+ {[%clk 0:01:22.3]} 24. Kxg1 {[%clk 0:02:00.8]} 24... Rd2 {[%clk
0:01:22.5]} 25. a4 {[%clk 0:01:55.5]} 25... Nd5 {[%clk 0:01:22.3]} 26. Bxd5
{[%clk 0:01:51.7]} 26... exd5 {[%clk 0:01:23.2]} 27. Rc1 {[%clk 0:01:51.1]}
27... Kd7 {[%clk 0:01:20.8]} 28. b4 {[%clk 0:01:51.3]} 28... Kd6 {[%clk
0:01:19.6]} 29. c3 {[%clk 0:01:45.2]} 29... c6 {[%clk 0:01:15]} 30. h4 {[%clk
0:01:45]} 30... h5 {[%clk 0:01:14.4]} 31. Kh2 {[%clk 0:01:44.2]} 31... g6 {[%clk
0:01:14]} 32. Kg3 {[%clk 0:01:44.2]} 32... f6 {[%clk 0:01:02.6]} 33. a5 {[%clk
0:01:43.7]} 33... d4 {[%clk 0:00:51.4]} 34. cxd4 {[%clk 0:01:42.5]} 34... Rxd4
{[%clk 0:00:52.3]} 35. Rb1 {[%clk 0:01:43.3]} 35... Kd5 {[%clk 0:00:47.6]} 36.
b5 {[%clk 0:01:43.3]} 36... Ra4 {[%clk 0:00:47.5]} 37. a6 {[%clk 0:01:41.1]}
37... cxb5 {[%clk 0:00:28.9]} 38. axb7 {[%clk 0:01:40.7]} 1-0

[Event "Late-Titled-Tuesday-Blitz-May-07-2024"]
[Site "Chess.com"]
[Date "2024.05.07"]
[Round "2"]
[White "giomar27"]
[Black "olawsson"]
[Result "1-0"]
[WhiteElo "2473"]
[BlackElo "2129"]
[TimeControl "180+1"]
[EndTime "14:15:58 PDT"]
[Termination "giomar27 won on time"]

1. Nc3 {[%clk 0:03:00.9]} 1... d6 {[%clk 0:02:21.6]} 2. d4 {[%clk 0:03:00.5]}
2... Nd7 {[%clk 0:02:17.9]} 3. f4 {[%clk 0:02:58.2]} 3... g6 {[%clk 0:02:10.7]}
4. Nf3 {[%clk 0:02:57.4]} 4... Bg7 {[%clk 0:02:10.5]} 5. h4 {[%clk 0:02:56.1]}
5... h5 {[%clk 0:02:04.4]} 6. e4 {[%clk 0:02:55.4]} 6... c5 {[%clk 0:02:03.1]}
7. Bc4 {[%clk 0:02:54.3]} 7... cxd4 {[%clk 0:01:52.2]} 8. Nxd4 {[%clk
0:02:53.5]} 8... Ngf6 {[%clk 0:01:52.4]} 9. Be3 {[%clk 0:02:50.3]} 9... Ng4
{[%clk 0:01:50.8]} 10. Bg1 {[%clk 0:02:50]} 10... O-O {[%clk 0:01:39.5]} 11. Qd2
{[%clk 0:02:50.1]} 11... a6 {[%clk 0:01:23.2]} 12. O-O-O {[%clk 0:02:49.5]}
12... b5 {[%clk 0:01:23.3]} 13. Bb3 {[%clk 0:02:49.7]} 13... Nc5 {[%clk
0:01:11]} 14. Nc6 {[%clk 0:02:47.6]} 14... Qe8 {[%clk 0:01:08.8]} 15. Nd5 {[%clk
0:02:45.6]} 15... Bf6 {[%clk 0:00:42.9]} 16. Nxf6+ {[%clk 0:02:41.7]} 16... Nxf6
{[%clk 0:00:30.4]} 17. e5 {[%clk 0:02:36.8]} 17... Nfe4 {[%clk 0:00:22.1]} 18.
Qd5 {[%clk 0:02:31.7]} 18... Be6 {[%clk 0:00:19.8]} 19. Nxe7+ {[%clk 0:02:25.1]}
19... Qxe7 {[%clk 0:00:19]} 20. exd6 {[%clk 0:02:25.8]} 20... Qf6 {[%clk
0:00:08.8]} 21. Qc6 {[%clk 0:02:17.2]} 21... Bxb3 {[%clk 0:00:07]} 22. axb3
{[%clk 0:02:18.1]} 22... Rac8 {[%clk 0:00:07.3]} 23. Qd5 {[%clk 0:02:10.2]}
23... Rfd8 {[%clk 0:00:07.5]} 24. Bxc5 {[%clk 0:01:49.1]} 24... Nxc5 {[%clk
0:00:06.2]} 25. Kb1 {[%clk 0:01:45.7]} 25... Qxf4 {[%clk 0:00:05.8]} 26. Rhf1
{[%clk 0:01:45.2]} 26... Qxh4 {[%clk 0:00:02.6]} 27. Qxf7+ {[%clk 0:01:44.2]}
27... Kh8 {[%clk 0:00:01.2]} 28. d7 {[%clk 0:01:44]} 28... Rc7 {[%clk
0:00:00.1]} 29. Qf8+ {[%clk 0:01:38.8]} 1-0

[Event "Late-Titled-Tuesday-Blitz-May-07-2024"]
[Site "Chess.com"]
[Date "2024.05.07"]
[Round "2"]
[White "Thjop"]
[Black "jbking07"]
[Result "1-0"]
[WhiteElo "2618"]
[BlackElo "2396"]
[TimeControl "180+1"]
[EndTime "14:16:12 PDT"]
[Termination "Thjop won by resignation"]

1. d4 {[%clk 0:03:00.9]} 1... Nf6 {[%clk 0:02:59.9]} 2. c4 {[%clk 0:03:00.2]}
2... e6 {[%clk 0:02:59.3]} 3. Nf3 {[%clk 0:03:00.3]} 3... d5 {[%clk 0:02:59.3]}
4. g3 {[%clk 0:03:00.4]} 4... Bb4+ {[%clk 0:02:59.2]} 5. Bd2 {[%clk 0:02:57.8]}
5... Be7 {[%clk 0:02:59.4]} 6. Bg2 {[%clk 0:02:57.9]} 6... O-O {[%clk
0:02:59.5]} 7. O-O {[%clk 0:02:58.5]} 7... c6 {[%clk 0:02:58.9]} 8. Bc3 {[%clk
0:02:54]} 8... b6 {[%clk 0:02:58.1]} 9. Nbd2 {[%clk 0:02:50.7]} 9... Bb7 {[%clk
0:02:57]} 10. Ne5 {[%clk 0:02:45]} 10... Nfd7 {[%clk 0:02:55.4]} 11. Nd3 {[%clk
0:02:34.1]} 11... Qc8 {[%clk 0:02:50.3]} 12. e4 {[%clk 0:02:25.7]} 12... dxc4
{[%clk 0:02:46.9]} 13. Nxc4 {[%clk 0:02:25]} 13... Ba6 {[%clk 0:02:42.8]} 14. b3
{[%clk 0:02:17.3]} 14... Rd8 {[%clk 0:02:40.5]} 15. Rc1 {[%clk 0:02:12.9]} 15...
Qb7 {[%clk 0:02:39.2]} 16. Qf3 {[%clk 0:02:01.7]} 16... Nf6 {[%clk 0:02:36]} 17.
Rfd1 {[%clk 0:01:52.5]} 17... Nbd7 {[%clk 0:02:35.3]} 18. g4 {[%clk 0:01:49.1]}
18... h6 {[%clk 0:02:34.3]} 19. h4 {[%clk 0:01:47.5]} 19... Nh7 {[%clk
0:02:28.4]} 20. Qg3 {[%clk 0:01:43.7]} 20... Ndf6 {[%clk 0:02:21.5]} 21. g5
{[%clk 0:01:32]} 21... hxg5 {[%clk 0:02:20.8]} 22. hxg5 {[%clk 0:01:32.9]} 22...
Nh5 {[%clk 0:02:21]} 23. Qg4 {[%clk 0:01:28.2]} 23... g6 {[%clk 0:02:09]} 24. f4
{[%clk 0:01:28.1]} 24... Bxc4 {[%clk 0:02:08]} 25. bxc4 {[%clk 0:01:27.7]} 25...
Qa6 {[%clk 0:02:08.3]} 26. Ne5 {[%clk 0:01:23.2]} 26... Rac8 {[%clk 0:01:58.5]}
27. Rd2 {[%clk 0:01:14.5]} 27... Nf8 {[%clk 0:01:51.7]} 28. Bf1 {[%clk
0:01:06.1]} 28... Qa3 {[%clk 0:01:49.6]} 29. Rcc2 {[%clk 0:00:52]} 29... Bb4
{[%clk 0:01:40.1]} 30. Qf3 {[%clk 0:00:43.7]} 30... c5 {[%clk 0:01:21.1]} 31. d5
{[%clk 0:00:39.4]} 31... exd5 {[%clk 0:01:15.8]} 32. cxd5 {[%clk 0:00:40.3]}
32... Nxf4 {[%clk 0:01:04.2]} 33. Qxf4 {[%clk 0:00:38]} 33... Bxc3 {[%clk
0:01:00.7]} 34. Qxf7+ {[%clk 0:00:37.2]} 1-0

[Event "Late-Titled-Tuesday-Blitz-May-07-2024"]
[Site "Chess.com"]
[Date "2024.05.07"]
[Round "2"]
[White "PenguinPacks"]
[Black "nitpicker"]
[Result "0-1"]
[WhiteElo "2506"]
[BlackElo "2271"]
[TimeControl "180+1"]
[EndTime "14:16:13 PDT"]
[Termination "nitpicker won by resignation"]

1. e4 {[%clk 0:03:00.9]} 1... c5 {[%clk 0:02:59.6]} 2. Nf3 {[%clk 0:03:00.5]}
2... Nc6 {[%clk 0:02:58.9]} 3. Bb5 {[%clk 0:03:00]} 3... Nf6 {[%clk 0:02:59.1]}
4. e5 {[%clk 0:02:59.6]} 4... Ng4 {[%clk 0:02:48.4]} 5. Qe2 {[%clk 0:02:57.9]}
5... Qc7 {[%clk 0:02:44.3]} 6. Bxc6 {[%clk 0:02:54.1]} 6... dxc6 {[%clk
0:02:41.8]} 7. d3 {[%clk 0:02:52.6]} 7... g6 {[%clk 0:02:37.9]} 8. Nc3 {[%clk
0:02:51.5]} 8... Bg7 {[%clk 0:02:36.8]} 9. Bf4 {[%clk 0:02:49.3]} 9... h5 {[%clk
0:01:57]} 10. O-O {[%clk 0:02:43]} 10... Nh6 {[%clk 0:01:44.1]} 11. d4 {[%clk
0:02:40]} 11... cxd4 {[%clk 0:01:40.2]} 12. Nxd4 {[%clk 0:02:40.9]} 12... Nf5
{[%clk 0:01:35.7]} 13. Rad1 {[%clk 0:02:40.7]} 13... Nxd4 {[%clk 0:01:29.4]} 14.
Rxd4 {[%clk 0:02:40.3]} 14... Be6 {[%clk 0:01:28.8]} 15. Ne4 {[%clk 0:02:38.7]}
15... Bxe5 {[%clk 0:01:12.5]} 16. Bxe5 {[%clk 0:02:17]} 16... Qxe5 {[%clk
0:01:12.3]} 17. Rfd1 {[%clk 0:02:12.3]} 17... O-O {[%clk 0:01:02.4]} 18. Qd2
{[%clk 0:02:06.1]} 18... Kg7 {[%clk 0:00:51.5]} 19. a3 {[%clk 0:02:05.8]} 19...
c5 {[%clk 0:00:49.2]} 20. Ra4 {[%clk 0:01:55.7]} 20... b5 {[%clk 0:00:48]} 21.
Ra5 {[%clk 0:01:53.8]} 21... Qxe4 {[%clk 0:00:47.2]} 22. Rxb5 {[%clk 0:01:54.1]}
22... Rad8 {[%clk 0:00:43]} 23. Qc3+ {[%clk 0:01:50]} 23... Kh7 {[%clk
0:00:37.9]} 24. Re1 {[%clk 0:01:50.6]} 24... Qd4 {[%clk 0:00:34.3]} 25. Qa5
{[%clk 0:01:50.1]} 25... Rd7 {[%clk 0:00:26.2]} 26. Rxc5 {[%clk 0:01:41.1]}
26... Qxb2 {[%clk 0:00:24.5]} 27. c3 {[%clk 0:01:36.9]} 27... Qd2 {[%clk
0:00:22.2]} 28. Rf1 {[%clk 0:01:31.3]} 28... Qe2 {[%clk 0:00:18.7]} 29. f3
{[%clk 0:01:28.4]} 29... Rd1 {[%clk 0:00:17.7]} 30. Rxh5+ {[%clk 0:01:27.8]}
30... Kg8 {[%clk 0:00:16.4]} 31. Rxd1 {[%clk 0:01:21.1]} 31... Qxd1+ {[%clk
0:00:15.7]} 32. Kf2 {[%clk 0:01:21.6]} 32... Qd2+ {[%clk 0:00:15.5]} 33. Kg3
{[%clk 0:01:21.2]} 33... gxh5 {[%clk 0:00:15.1]} 34. Qg5+ {[%clk 0:01:21.5]}
34... Qxg5+ {[%clk 0:00:13.9]} 0-1

[Event "Late-Titled-Tuesday-Blitz-May-07-2024"]
[Site "Chess.com"]
[Date "2024.05.07"]
[Round "2"]
[White "MITerryble"]
[Black "CarlosjPineror"]
[Result "1-0"]
[WhiteElo "3023"]
[BlackElo "2654"]
[TimeControl "180+1"]
[EndTime "14:16:14 PDT"]
[Termination "MITerryble won by checkmate"]

1. d4 {[%clk 0:02:54.9]} 1... Nf6 {[%clk 0:02:59.6]} 2. Bg5 {[%clk 0:02:55]}
2... d5 {[%clk 0:02:59.1]} 3. e3 {[%clk 0:02:55.1]} 3... c5 {[%clk 0:02:58.9]}
4. c3 {[%clk 0:02:55.5]} 4... a6 {[%clk 0:02:53.5]} 5. Nd2 {[%clk 0:02:51.1]}
5... Nc6 {[%clk 0:02:52.4]} 6. dxc5 {[%clk 0:02:50.9]} 6... e5 {[%clk
0:02:51.4]} 7. b4 {[%clk 0:02:50.8]} 7... a5 {[%clk 0:02:50.1]} 8. a3 {[%clk
0:02:50]} 8... h6 {[%clk 0:02:43.7]} 9. Bxf6 {[%clk 0:02:45]} 9... Qxf6 {[%clk
0:02:40.7]} 10. Ngf3 {[%clk 0:02:45.5]} 10... g5 {[%clk 0:02:39.3]} 11. e4
{[%clk 0:02:33.3]} 11... d4 {[%clk 0:02:18.5]} 12. cxd4 {[%clk 0:02:31.9]} 12...
exd4 {[%clk 0:02:16.7]} 13. b5 {[%clk 0:02:30.6]} 13... Ne5 {[%clk 0:02:12.6]}
14. Rc1 {[%clk 0:02:27.9]} 14... Ng6 {[%clk 0:02:06.5]} 15. e5 {[%clk
0:02:13.6]} 15... Qd8 {[%clk 0:01:53.9]} 16. Ne4 {[%clk 0:02:08.9]} 16... Bf5
{[%clk 0:01:49.2]} 17. Nf6+ {[%clk 0:02:02.6]} 17... Ke7 {[%clk 0:01:38.1]} 18.
Bc4 {[%clk 0:02:02.5]} 18... d3 {[%clk 0:01:24.6]} 19. O-O {[%clk 0:01:58.6]}
19... Bg7 {[%clk 0:01:24.8]} 20. Qb3 {[%clk 0:01:47.5]} 20... Nf4 {[%clk
0:01:15.2]} 21. Nd5+ {[%clk 0:01:34.3]} 21... Nxd5 {[%clk 0:00:51]} 22. Bxd5
{[%clk 0:01:35.2]} 22... Bg6 {[%clk 0:00:23.6]} 23. Bxb7 {[%clk 0:01:29.7]}
23... Rb8 {[%clk 0:00:19]} 24. c6 {[%clk 0:01:30.2]} 24... Qb6 {[%clk
0:00:14.3]} 25. a4 {[%clk 0:01:24.3]} 25... Rhe8 {[%clk 0:00:07.7]} 26. Qa3+
{[%clk 0:01:24.5]} 26... Ke6 {[%clk 0:00:08]} 27. Qd6+ {[%clk 0:01:24]} 27...
Kf5 {[%clk 0:00:08.8]} 28. Rc4 {[%clk 0:01:21.1]} 28... Bxe5 {[%clk 0:00:03.9]}
29. g4# {[%clk 0:01:20.7]} 1-0

[Event "Late-Titled-Tuesday-Blitz-May-07-2024"]
[Site "Chess.com"]
[Date "2024.05.07"]
[Round "2"]
[White "rhwr"]
[Black "ImportedItalianMaple"]
[Result "0-1"]
[WhiteElo "2276"]
[BlackElo "2529"]
[TimeControl "180+1"]
[EndTime "14:16:14 PDT"]
[Termination "ImportedItalianMaple won by resignation"]

1. e4 {[%clk 0:03:00.9]} 1... g6 {[%clk 0:03:00.9]} 2. d4 {[%clk 0:03:00.3]}
2... Bg7 {[%clk 0:03:01.5]} 3. Nc3 {[%clk 0:03:00.7]} 3... d5 {[%clk 0:03:00.9]}
4. e5 {[%clk 0:03:00]} 4... f6 {[%clk 0:02:56.9]} 5. Nf3 {[%clk 0:02:58.9]} 5...
Bg4 {[%clk 0:02:55.7]} 6. exf6 {[%clk 0:02:56]} 6... Nxf6 {[%clk 0:02:55.9]} 7.
Be2 {[%clk 0:02:56.3]} 7... O-O {[%clk 0:02:55.2]} 8. O-O {[%clk 0:02:56.2]}
8... Nc6 {[%clk 0:02:52.1]} 9. h3 {[%clk 0:02:51.9]} 9... Bxf3 {[%clk
0:02:48.7]} 10. Bxf3 {[%clk 0:02:51.4]} 10... Qd7 {[%clk 0:02:42.9]} 11. Bf4
{[%clk 0:02:48.1]} 11... Ne4 {[%clk 0:02:34.7]} 12. Bxe4 {[%clk 0:02:45.2]}
12... dxe4 {[%clk 0:02:32.1]} 13. Be3 {[%clk 0:02:45.4]} 13... Qf5 {[%clk
0:02:16]} 14. d5 {[%clk 0:02:43.2]} 14... Rad8 {[%clk 0:02:13]} 15. Qe2 {[%clk
0:02:40.4]} 15... Nb4 {[%clk 0:02:08.4]} 16. Bc5 {[%clk 0:02:32.6]} 16... Nxd5
{[%clk 0:02:08]} 17. Nxd5 {[%clk 0:02:28.1]} 17... Rxd5 {[%clk 0:02:08.9]} 18.
Bxe7 {[%clk 0:02:25]} 18... Rf7 {[%clk 0:02:09.4]} 19. Ba3 {[%clk 0:02:22.3]}
19... Bd4 {[%clk 0:01:47.2]} 20. c3 {[%clk 0:02:19.7]} 20... Bb6 {[%clk
0:01:45.8]} 21. c4 {[%clk 0:02:11]} 21... Rd3 {[%clk 0:01:35.2]} 22. c5 {[%clk
0:02:02.3]} 22... Bxc5 {[%clk 0:01:28.3]} 23. Bxc5 {[%clk 0:02:00.2]} 23... Qxc5
{[%clk 0:01:29.2]} 24. Qxe4 {[%clk 0:01:59.9]} 24... Rd2 {[%clk 0:01:28.6]} 25.
Rac1 {[%clk 0:01:32.7]} 25... Qb6 {[%clk 0:00:53.4]} 26. Rc2 {[%clk 0:01:30.3]}
26... Rfxf2 {[%clk 0:00:40.6]} 27. Rxd2 {[%clk 0:01:12.2]} 27... Rf4+ {[%clk
0:00:36.1]} 28. Kh2 {[%clk 0:00:47.7]} 28... Rxe4 {[%clk 0:00:36.5]} 0-1

[Event "Late-Titled-Tuesday-Blitz-May-07-2024"]
[Site "Chess.com"]
[Date "2024.05.07"]
[Round "2"]
[White "Emp3rador"]
[Black "Sacbutt"]
[Result "1-0"]
[WhiteElo "2625"]
[BlackElo "2306"]
[TimeControl "180+1"]
[EndTime "14:16:21 PDT"]
[Termination "Emp3rador won by resignation"]

1. e4 {[%clk 0:03:00.9]} 1... c5 {[%clk 0:02:51.2]} 2. Nf3 {[%clk 0:02:58.2]}
2... d6 {[%clk 0:02:51.7]} 3. Bb5+ {[%clk 0:02:57.9]} 3... Bd7 {[%clk
0:02:51.3]} 4. Bxd7+ {[%clk 0:02:58.4]} 4... Qxd7 {[%clk 0:02:52.2]} 5. c4
{[%clk 0:02:58.1]} 5... Nc6 {[%clk 0:02:52.3]} 6. d4 {[%clk 0:02:58.2]} 6...
cxd4 {[%clk 0:02:51.6]} 7. Nxd4 {[%clk 0:02:59.1]} 7... g6 {[%clk 0:02:52.2]} 8.
Nc3 {[%clk 0:02:59.1]} 8... Bg7 {[%clk 0:02:52.8]} 9. Be3 {[%clk 0:02:59.7]}
9... Nf6 {[%clk 0:02:53.1]} 10. f3 {[%clk 0:03:00.4]} 10... O-O {[%clk
0:02:53.5]} 11. O-O {[%clk 0:03:00.2]} 11... Rac8 {[%clk 0:02:51.5]} 12. b3
{[%clk 0:03:00.5]} 12... Rfd8 {[%clk 0:02:45.4]} 13. Qd2 {[%clk 0:02:58.6]}
13... a6 {[%clk 0:02:45.4]} 14. a4 {[%clk 0:02:58.1]} 14... Qc7 {[%clk
0:02:42.4]} 15. Rfd1 {[%clk 0:02:57.1]} 15... Qa5 {[%clk 0:02:19.7]} 16. Rab1
{[%clk 0:02:56.8]} 16... Nxd4 {[%clk 0:01:59.5]} 17. Bxd4 {[%clk 0:02:55.8]}
17... Qc7 {[%clk 0:01:54]} 18. Kh1 {[%clk 0:02:53.4]} 18... Nh5 {[%clk
0:01:48.8]} 19. Nd5 {[%clk 0:02:51.8]} 19... Qd7 {[%clk 0:01:40.7]} 20. Nb6
{[%clk 0:02:51.6]} 20... Qe6 {[%clk 0:01:39.8]} 21. Nxc8 {[%clk 0:02:51.7]}
21... Rxc8 {[%clk 0:01:40.4]} 22. Bxg7 {[%clk 0:02:52.1]} 22... Kxg7 {[%clk
0:01:38.8]} 23. Qd5 {[%clk 0:02:50.4]} 23... Qxd5 {[%clk 0:01:36.4]} 24. Rxd5
{[%clk 0:02:27.2]} 24... Nf4 {[%clk 0:01:32.7]} 25. Rd2 {[%clk 0:02:21.8]} 25...
Kf8 {[%clk 0:01:24.6]} 26. g3 {[%clk 0:02:21.9]} 26... Ne6 {[%clk 0:01:21.3]}
27. Kg2 {[%clk 0:02:21.7]} 27... Ke8 {[%clk 0:01:20.7]} 28. Kf2 {[%clk
0:02:21.8]} 28... Nc5 {[%clk 0:01:15.4]} 29. Ke3 {[%clk 0:02:21.1]} 29... Rc7
{[%clk 0:01:08.6]} 30. a5 {[%clk 0:02:20.7]} 30... Nd7 {[%clk 0:01:03]} 31. Rc2
{[%clk 0:02:11.3]} 31... Ne5 {[%clk 0:00:59.3]} 32. f4 {[%clk 0:02:11.4]} 32...
Nc6 {[%clk 0:00:59.3]} 33. b4 {[%clk 0:02:09.7]} 33... e5 {[%clk 0:00:59.5]} 34.
Rd2 {[%clk 0:02:05.9]} 34... Nd4 {[%clk 0:00:58.3]} 35. Rxd4 {[%clk 0:02:03.2]}
35... exd4+ {[%clk 0:00:59.2]} 36. Kxd4 {[%clk 0:02:03.6]} 36... Kd8 {[%clk
0:00:49.1]} 37. Kd5 {[%clk 0:01:58.6]} 37... Kd7 {[%clk 0:00:48.8]} 38. c5
{[%clk 0:01:57.2]} 38... dxc5 {[%clk 0:00:48.1]} 39. bxc5 {[%clk 0:01:57.4]}
39... Kc8 {[%clk 0:00:45.3]} 40. Rb6 {[%clk 0:01:56.4]} 40... Rd7+ {[%clk
0:00:37.2]} 41. Rd6 {[%clk 0:01:55.8]} 41... Re7 {[%clk 0:00:36]} 42. e5 {[%clk
0:01:55.3]} 42... h5 {[%clk 0:00:33.6]} 43. c6 {[%clk 0:01:48]} 43... bxc6+
{[%clk 0:00:33.4]} 44. Kxc6 {[%clk 0:01:36.5]} 44... Rc7+ {[%clk 0:00:31.9]} 45.
Kb6 {[%clk 0:01:36.3]} 45... Rc2 {[%clk 0:00:31.6]} 46. Rc6+ {[%clk 0:01:35.7]}
1-0